fUSD/lending_fUSD_20250724
["ID","MTS","AMOUNT","RATE_DAILY","PERIOD"]
[374563713,1753356636117,-690.88331187,0.00022444,2]
[374563714,1753356636126,-150.0,0.00022473,4]
[374563715,1753356636136,-1545.73814368,0.00022478,2]
[374563716,1753356636146,-268.65755051,0.00022486,7]
[374563717,1753356636157,-1641.475715,0.00022487,8]
[374563718,1753356636167,-168.31,0.0002249,2]
[374563719,1753356636177,-150.0,0.00022495,4]
[374563720,1753356636187,-2038.07,0.000225,2]
[374563721,1753356636196,-35045.23966268,0.000225,3]
[374563722,1753356636206,-477.18900901,0.000225,3]
[374563723,1753356636216,-900.0,0.000225,8]
[374563724,1753356636225,-1545.73814368,0.00022524,2]
[374563725,1753356636235,-1850.2853,0.00022546,2]
[374563726,1753356636245,-758.152,0.00022546,2]
[374563727,1753356636255,-150.0,0.00022549,4]
[374563728,1753356636265,-1545.73814368,0.0002257,2]
[374563729,1753356636274,-150.0,0.00022588,4]
[374563730,1753356636284,-1400.0,0.000226,8]
[374563731,1753356636294,-500.0,0.00022602,2]
[374563732,1753356636305,-822.0,0.00022602,2]
[374563733,1753356636315,-500.0,0.00022602,2]
[374563734,1753356636325,-803.0,0.00022602,2]
[374563735,1753356636335,-150.0,0.00022602,2]
[374563736,1753356636345,-150.0,0.00022602,2]
[374563737,1753356636355,-150.0,0.00022602,2]
[374563738,1753356636367,-150.84906477,0.00022602,2]
[374563739,1753356636377,-150.0,0.00022602,2]
[374563740,1753356636387,-150.0,0.00022602,2]
[374563741,1753356636398,-825.23,0.00022602,2]
[374563742,1753356636408,-150.0,0.00022604,4]
[374563743,1753356636419,-1232.82,0.00022608,2]
[374563744,1753356636429,-1545.73814368,0.00022616,2]
[374563745,1753356636439,-257.0,0.00022617,2]
[374563746,1753356636449,-257.0,0.00022623,2]
[374563747,1753356636459,-268.65755051,0.00022624,7]
[374563748,1753356636470,-373.14615017,0.00022645,2]
[374563749,1753356636480,-170.51,0.00022651,2]
[374563750,1753356636491,-1545.73814368,0.00022662,2]
[374563751,1753356636501,-150.48551713,0.00022674,2]
[374563752,1753356636511,-150.0,0.00022674,2]
[374563753,1753356636880,-150.0,0.00022674,2]
[374563754,1753356636891,-150.0,0.00022674,2]
[374563755,1753356636902,-150.0,0.00022674,2]
[374563756,1753356636913,-150.0,0.00022674,2]
[374563757,1753356636924,-150.0,0.00022674,2]
[374563758,1753356636934,-500.0,0.00022674,2]
[374563759,1753356636949,-278.0,0.00022674,2]
[374563760,1753356636959,-150.0,0.00022674,2]
[374563761,1753356636969,-156.7019426,0.00022675,2]
[374563762,1753356636980,-150.0,0.00022677,4]
[374563763,1753356636989,-168.31,0.0002269,2]
[374563764,1753356636999,-655.54,0.0002269,2]
[374563765,1753356637008,-1635.6584,0.000227,2]
[374563766,1753356637018,-32917.41740148,0.000227,2]
[374563767,1753356637027,-1900.0,0.000227,8]
[374563768,1753356637037,-150.0,0.00022702,4]
[374563769,1753356637047,-1545.73814368,0.00022708,2]
[374563770,1753356637057,-150.0,0.00022713,4]
[374563771,1753356637076,-168.0,0.00022733,2]
[374563772,1753356637091,-1545.73814368,0.00022754,2]
[374563773,1753356637101,-363.377,0.00022755,2]
[374563774,1753356637112,-5958.806,0.00022755,2]
[374563775,1753356637126,-168.31,0.0002276,2]
[374563776,1753356637139,-200.0,0.00022761,2]
[374563777,1753356637149,-268.65755051,0.00022762,7]
[374563778,1753356637159,-200.0,0.00022762,2]
[374563779,1753356637173,-600.0,0.0002277,2]
[374563780,1753356637183,-151.0,0.0002277,2]
[374563781,1753356637193,-9557.879672,0.0002277,2]
[374563782,1753356637203,-9348.1414,0.000228,2]
[374563783,1753356637213,-1545.73814368,0.000228,2]
[374563784,1753356637223,-2400.0,0.000228,8]
[374563785,1753356637233,-150.0,0.00022804,4]
[374563786,1753356637243,-150.0,0.00022817,4]
[374563787,1753356637253,-1570.0,0.00022818,2]
[374563788,1753356637263,-150.0,0.00022822,4]
[374563789,1753356637272,-168.31,0.00022831,2]
[374563790,1753356637282,-3650.0959495,0.00022832,2]
[374563791,1753356637292,-3650.09594945,0.00022834,2]
[374563792,1753356637302,-3650.09594945,0.00022835,2]
[374563793,1753356637312,-3650.09594945,0.00022837,2]
[374563794,1753356637323,-3650.09594945,0.00022838,2]
[374563795,1753356637332,-1000.0,0.00022839,2]
[374563796,1753356637342,-5000.0,0.00022839,2]
[374563797,1753356637352,-3650.09594945,0.0002284,2]
[374563798,1753356637362,-3650.09594945,0.00022841,2]
[374563799,1753356637374,-168.0,0.00022842,2]
[374563800,1753356637383,-3650.09594945,0.00022843,2]
[374563801,1753356637393,-3650.09594945,0.00022844,2]
[374563802,1753356637403,-271.57306554,0.00022846,2]
[374563803,1753356637413,-2711.31685958,0.00022846,2]
[374563804,1753356637423,-305.33796885,0.00022846,2]
[374563805,1753356637435,-3650.09594945,0.00022846,2]
[374563806,1753356637445,-1545.73814368,0.00022846,2]
[374563807,1753356637455,-209.87659429,0.00022846,2]
[374563809,1753356637467,-3055.0433,0.00022846,3]
[374563810,1753356637479,-10000.0,0.00022846,2]
[374563811,1753356637490,-500.0,0.00022873,2]
[374563812,1753356637500,-500.0,0.00022873,2]
[374563813,1753356637510,-500.0,0.00022873,2]
[374563815,1753356637520,-588.14372653,0.00022873,2]
[374563817,1753356637530,-500.0,0.00022873,2]
[374563819,1753356637540,-500.60786409,0.00022873,2]
[374563820,1753356637550,-500.0,0.00022873,2]
[374563821,1753356637560,-221.99511257,0.00022873,2]
[374563822,1753356637570,-500.0,0.00022873,2]
[374563823,1753356637579,-557.4658835,0.00022873,2]
[374563824,1753356637589,-500.0,0.00022873,2]
[374563825,1753356637600,-500.0,0.00022876,2]
[374563826,1753356637610,-822.0,0.00022876,2]
[374563827,1753356637620,-500.0,0.00022876,2]
[374563828,1753356637630,-803.0,0.00022876,2]
[374563829,1753356637641,-150.0,0.00022876,2]
[374563830,1753356637651,-150.0,0.00022876,2]
[374563831,1753356637661,-150.0,0.00022876,2]
[374563832,1753356637671,-150.0,0.00022876,2]
[374563833,1753356637681,-168.31,0.00022889,2]
[374563834,1753356637691,-1158.0,0.00022896,2]
[374563835,1753356637701,-764.0,0.00022899,2]
[374563836,1753356637712,-764.0,0.00022899,2]
[374563837,1753356637722,-764.0,0.00022899,2]
[374563838,1753356637731,-764.0,0.00022899,2]
[374563839,1753356637741,-764.0,0.00022899,2]
[374563840,1753356637751,-764.0,0.00022899,2]
[374563841,1753356637761,-764.0,0.00022899,2]
[374563842,1753356637771,-764.0,0.00022899,2]
[374563843,1753356637780,-764.0,0.00022899,2]
[374563844,1753356637790,-764.0,0.00022899,2]
[374563845,1753356637800,-150.0,0.00022899,2]
[374563846,1753356637810,-150.0,0.00022899,2]
[374563847,1753356637820,-150.0,0.00022899,2]
[374563848,1753356637830,-150.0,0.00022899,2]
[374563849,1753356637839,-150.0,0.00022899,2]
[374563850,1753356637849,-150.0,0.00022899,2]
[374563851,1753356637860,-150.46812322,0.00022899,2]
[374563852,1753356637871,-150.0,0.00022899,2]
[374563853,1753356637882,-151.0136959,0.00022899,2]
[374563854,1753356637892,-15847.36397811,0.000229,2]
[374563855,1753356637902,-268.65755051,0.000229,8]
[374563856,1753356637912,-400.0,0.000229,8]
[374563857,1753356637922,-229.63978277,0.00022919,2]
[374563858,1753356637932,-655.54,0.00022922,2]
[374563859,1753356637943,-265.07367168,0.00022932,4]
[374563860,1753356637953,-194.55145512,0.00022932,4]
[374563861,1753356637963,-299.06098312,0.00022932,4]
[374563862,1753356637973,-77229.0,0.00022932,2]
[374563863,1753356637983,-151.16382326,0.00022932,2]
[374563864,1753356637993,-150.0,0.00022932,2]
[374563865,1753356638003,-150.0,0.00022932,2]
[374563866,1753356638013,-150.0,0.00022932,2]
[374563867,1753356638023,-150.0,0.00022932,2]
[374563868,1753356638034,-150.0,0.00022932,2]
[374563869,1753356638045,-150.0,0.00022932,2]
[374563870,1753356638055,-150.0,0.00022932,2]
[374563871,1753356638065,-150.0,0.00022932,2]
[374563872,1753356638075,-29839.56270762,0.00022934,2]
[374563873,1753356638085,-852.0,0.00022936,2]
[374563874,1753356638100,-160.27,0.00022936,2]
[374563876,1753356638109,-166.76643751,0.00022936,2]
[374563878,1753356638121,-166.76643751,0.00022936,2]
[374563880,1753356638131,-166.76643751,0.00022936,2]
[374563882,1753356638140,-1060.15626232,0.00022937,10]
[374563884,1753356638150,-122779.99671914,0.00022938,4]
[374563906,1753356638359,-500.0,0.00019987,2]
[374563908,1753356638371,-150.0,0.000224,2]
[374563910,1753356638382,-150.0,0.00022674,2]
[374563912,1753356638392,-2174.45402423,0.00022846,2]
[374563914,1753356638403,-70789.77885493,0.00022938,4]
[374563916,1753356638412,-10376.3252063,0.00022939,2]
[374563918,1753356638423,-40026.8088916,0.00022939,2]
[374563921,1753356638433,-2181.3108337,0.0002294,2]
[374563923,1753356638443,-231819.857495,0.0002294,2]
[374563925,1753356638453,-576.4030818,0.0002294,2]
[374563927,1753356638463,-324.2136251,0.0002294,2]
[374563929,1753356638473,-738.59,0.00022944,2]
[374563931,1753356638483,-666.0,0.00022945,2]
[374563933,1753356638492,-666.0,0.00022945,2]
[374563935,1753356638502,-300.0,0.00022945,2]
[374563937,1753356638511,-300.0,0.00022945,2]
[374563939,1753356638521,-300.0,0.00022945,2]
[374563941,1753356638531,-300.0,0.00022945,2]
[374563943,1753356638540,-300.0,0.00022945,2]
[374563945,1753356638549,-300.0,0.00022945,2]
[374563947,1753356638559,-2685.52489433,0.00022945,2]
[374563949,1753356638569,-481.37745153,0.00022945,2]
[374563951,1753356638579,-150.0,0.00022945,2]
[374563953,1753356638589,-666.0,0.00022945,2]
[374563956,1753356638598,-666.0,0.00022945,2]
[374563958,1753356638608,-300.0,0.00022945,2]
[374563960,1753356638618,-300.0,0.00022945,2]
[374563962,1753356638627,-300.0,0.00022945,2]
[374563964,1753356638637,-3417871.1539946,0.00022946,5]
[374563966,1753356638650,-990.31701838,0.00022946,5]
[374563968,1753356638661,-29263.54785775,0.00022946,5]
[374563971,1753356638678,-36097.8476655,0.00022946,5]
[374564089,1753356639809,-500.0,0.00019987,2]
[374564091,1753356639820,-500.0,0.00019987,2]
[374564093,1753356639830,-500.0,0.00019987,2]
[374564095,1753356639840,-1905414.57134932,0.00022946,5]
[374564097,1753356639850,-151.0,0.00022946,7]
[374564099,1753356639860,-281.359698,0.00022946,7]
[374564101,1753356639872,-151.0,0.00022946,7]
[374564103,1753356639882,-151.0,0.00022946,7]
[374564105,1753356639892,-151.0,0.00022946,7]
[374564107,1753356639902,-151.0,0.00022946,7]
[374564109,1753356639911,-150.0,0.00022946,2]
[374564111,1753356639920,-151.0,0.00022946,2]
[374564113,1753356639930,-172.63496324,0.00022946,2]
[374564115,1753356639940,-157.0,0.00022946,2]
[374564117,1753356639950,-1210.0,0.00022946,2]
[374564119,1753356639960,-154.75779487,0.00022946,2]
[374564121,1753356639970,-153.0,0.00022946,2]
[374564123,1753356639979,-153.0,0.00022946,2]
[374564125,1753356639988,-227315.99321793,0.00022946,2]
[374564127,1753356639999,-375.17923269,0.00022946,2]
[374564130,1753356640009,-150.0,0.00022948,2]
[374564131,1753356640018,-200.0,0.00022948,2]
[374564134,1753356640028,-200.0,0.00022948,2]
[374564136,1753356640037,-200.0,0.00022948,2]
[374564138,1753356640047,-200.0,0.00022948,2]
[374564140,1753356640057,-150.0,0.00022948,2]
[374564142,1753356640067,-500.0,0.00022948,2]
[374564144,1753356640076,-200.0,0.00022948,2]
[374564146,1753356640086,-150.0,0.00022948,2]
[374564148,1753356640099,-300.0,0.00022955,2]
[374564150,1753356640109,-300.0,0.00022955,2]
[374564152,1753356640119,-5354.9441716,0.00022956,2]
[374564154,1753356640131,-738.59,0.00022972,2]
[374564156,1753356640141,-279.6718873,0.00022973,2]
[374564158,1753356640151,-500.0,0.00022973,2]
[374564160,1753356640160,-500.0,0.00022973,2]
[374564162,1753356640170,-500.0,0.00022973,2]
[374564164,1753356640181,-500.0,0.00022973,2]
[374564166,1753356640190,-500.0,0.00022973,2]
[374564168,1753356640201,-500.0,0.00022973,2]
[374564171,1753356640211,-630.08245246,0.00022973,2]
[374564173,1753356640221,-574.94363024,0.00022973,2]
[374564175,1753356640231,-738.59,0.00022999,2]
[374564177,1753356640240,-674.85255967,0.00022999,2]
[374564179,1753356640251,-666.0,0.00022999,2]
[374564181,1753356640260,-300.0,0.00022999,2]
[374564183,1753356640270,-300.0,0.00022999,2]
[374564185,1753356640279,-300.0,0.00022999,2]
[374564187,1753356640289,-3204.6,0.00023,14]
[374564189,1753356640299,-1420.71,0.00023,7]
[374564190,1753356640310,-11342.61,0.00023,7]
[374564191,1753356640320,-76295.34,0.00023,7]
[374564192,1753356640330,-429.16964129,0.00023,2]
[374564193,1753356640341,-15593.66046196,0.00023,2]
[374564194,1753356640351,-211.01152796,0.00023,7]
[374564195,1753356640361,-160.0,0.00023,3]
[374564196,1753356640375,-839.91269601,0.00023,3]
[374564197,1753356640386,-150.0,0.00023001,2]
[374564198,1753356640395,-150.0,0.00023001,2]
[374564199,1753356640405,-716.17,0.00023001,2]
[374564200,1753356640415,-1176.21,0.00023001,2]
[374564201,1753356640425,-358.19,0.00023001,2]
[374564202,1753356640435,-333.75,0.00023001,2]
[374564204,1753356640445,-708.28,0.00023001,2]
[374564206,1753356640455,-358.19,0.00023001,2]
[374564208,1753356640465,-150.0,0.00023001,2]
[374564210,1753356640475,-348.3,0.00023001,2]
[374564213,1753356640485,-356.94,0.00023001,2]
[374564215,1753356640495,-738.59,0.00023027,2]
[374564217,1753356640504,-738.59,0.00023054,2]
[374564219,1753356640514,-227.0,0.00023059,2]
[374564221,1753356640524,-2711.31685953,0.00023072,2]
[374564223,1753356640534,-738.59,0.00023081,2]
[374564225,1753356640544,-168.0,0.00023087,2]
[374564227,1753356640554,-170.51,0.00023091,2]
[374564229,1753356640564,-15013.39887385,0.00023101,2]
[374564231,1753356640573,-738.59,0.00023109,2]
[374564233,1753356640584,-286.19,0.00023132,2]
[374564236,1753356640595,-738.59,0.00023136,2]
[374564238,1753356640605,-500.0,0.0002315,2]
[374564239,1753356640614,-822.0,0.0002315,2]
[374564241,1753356640636,-500.0,0.0002315,2]
[374564243,1753356640646,-803.0,0.0002315,2]
[374564246,1753356640656,-150.0,0.0002315,2]
[374564248,1753356640666,-150.0,0.0002315,2]
[374564250,1753356640676,-738.59,0.00023164,2]
[374564252,1753356640685,-150.0,0.00023173,2]
[374564254,1753356640696,-150.0,0.00023173,2]
[374564256,1753356640705,-203.42178281,0.00023173,2]
[374564258,1753356640717,-150.0,0.00023173,2]
[374564260,1753356640728,-150.0,0.00023173,2]
[374564262,1753356640737,-150.0,0.00023173,2]
[374564264,1753356640747,-463.0,0.0002318,2]
[374564266,1753356640757,-170.5,0.00023182,2]
[374564268,1753356640767,-738.59,0.00023191,2]
[374564270,1753356640777,-150.0,0.00023206,2]
[374564272,1753356640786,-150.0,0.00023206,2]
[374564274,1753356640796,-256.54055567,0.00023206,2]
[374564276,1753356640807,-150.0,0.00023206,2]
[374564278,1753356640817,-150.0,0.00023206,2]
[374564280,1753356640827,-738.59,0.00023218,2]
[374564282,1753356640837,-200.0,0.00023222,2]
[374564284,1753356640847,-150.0,0.00023222,2]
[374564286,1753356640856,-500.0,0.00023222,2]
[374564288,1753356640866,-150.0,0.00023222,2]
[374564290,1753356640878,-227.0,0.00023225,2]
[374564292,1753356640888,-738.59,0.00023246,2]
[374564294,1753356640898,-2174.45402423,0.00023257,2]
[374564297,1753356640908,-738.59,0.00023273,2]
[374564299,1753356640919,-2347.73,0.00023287,2]
[374564300,1753356640928,-2711.31685953,0.00023299,2]
[374564302,1753356640938,-6583.48,0.000233,2]
[374564305,1753356640948,-738.59,0.00023301,2]
[374564307,1753356640958,-600.0,0.00023318,2]
[374564309,1753356640970,-174.59849108,0.00023318,2]
[374564311,1753356640980,-1731.51626486,0.00023318,2]
[374564313,1753356640989,-738.59,0.00023328,2]
[374564315,1753356640999,-738.59,0.00023355,2]
[374564317,1753356641008,-738.59,0.00023383,2]
[374564319,1753356641018,-738.59,0.0002341,2]
[374564321,1753356641028,-503.0,0.00023416,8]
[374564323,1753356641039,-752.63074793,0.00023421,2]
[374564325,1753356641050,-591.99431193,0.00023421,2]
[374564327,1753356641061,-509.20696183,0.00023421,2]
[374564329,1753356641072,-500.0,0.00023421,2]
[374564332,1753356641083,-955.9349861,0.00023421,2]
[374564333,1753356641096,-503.02584058,0.00023421,2]
[374564335,1753356641105,-500.0,0.00023424,2]
[374564337,1753356641115,-822.0,0.00023424,2]
[374564339,1753356641125,-500.0,0.00023424,2]
[374564341,1753356641135,-803.0,0.00023424,2]
[374564343,1753356641144,-200.0,0.00023424,2]
[374564345,1753356641155,-200.99566156,0.00023424,2]
[374564347,1753356641164,-738.59,0.00023438,2]
[374564349,1753356641174,-200.0,0.00023447,2]
[374564351,1753356641183,-200.0,0.00023447,2]
[374564353,1753356641192,-200.0,0.00023447,2]
[374564356,1753356641202,-200.0,0.00023447,2]
[374564358,1753356641211,-200.0,0.00023447,2]
[374564360,1753356641221,-738.59,0.00023465,2]
[374564362,1753356641230,-150.0,0.0002348,2]
[374564364,1753356641240,-200.0,0.0002348,2]
[374564366,1753356641249,-200.0,0.0002348,2]
[374564368,1753356641258,-200.0,0.0002348,2]
[374564370,1753356641268,-738.59,0.00023492,2]
[374564372,1753356641277,-200.0,0.00023496,2]
[374564374,1753356641287,-500.0,0.00023496,2]
[374564376,1753356641296,-150.0,0.00023496,2]
[374564378,1753356641305,-6583.48,0.000235,2]
[374564380,1753356641314,-738.59,0.0002352,2]
[374564382,1753356641324,-1000.0,0.00023521,2]
[374564384,1753356641334,-2711.31685953,0.00023525,2]
[374564386,1753356641344,-738.59,0.00023547,2]
[374564388,1753356641354,-674657.68028409,0.00023555,2]
[374564392,1753356641385,-438.63864084,0.00023555,2]
[374564394,1753356641397,-593.95,0.00023555,2]
[374564398,1753356641426,-500.0,0.00023555,2]
[374564428,1753356641714,-500.0,0.00019987,2]
[374564456,1753356641976,-551.29547781,0.00019987,2]
[374564458,1753356641991,-151.0,0.00023182,2]
[374564460,1753356642001,-147554.62354619,0.00023555,2]
[374564462,1753356642013,-1882.91408837,0.00023555,2]
[374564464,1753356642024,-779.23116234,0.00023555,2]
[374564470,1753356642067,-1484.78649278,0.00023555,2]
[374564533,1753356642777,-3023.7522,0.00023555,2]
[374564544,1753356642886,-2409.33409,0.00023555,2]
[374564559,1753356643038,-0.21200987,0.00023555,2]
[374564561,1753356643054,-634.0,0.00022946,2]
[374564563,1753356643064,-2395.52542672,0.00023555,2]
[374564569,1753356643117,-288.43088627,0.00023555,2]
[374564571,1753356643130,-877.81693202,0.00023555,2]
[374564801,1753356647112,-1333.33,0.00022,2]
[374564802,1753356647122,-1232.39212631,0.00023355,2]
[374564803,1753356647184,-11997.32914692,0.00023355,2]
[374564804,1753356647196,-12214.61224229,0.00023355,2]
[374564805,1753356647207,-1275.0,0.00023355,2]
[374564806,1753356647219,-574.05099988,0.00023355,2]
[374564807,1753356647231,-914.71624154,0.00023355,2]
[374564808,1753356785316,151.0,0.00025,120]
[374564809,1753356786734,151.0,0.000261,120]
[374564810,1753356788143,151.0,0.000273,120]
[374564811,1753356794030,152.09,0.00013699,2]
[374564813,1753356969075,-169.95629603,0.00016712,2]
[374564814,1753356975764,-16.10370397,0.00016712,2]
[374564815,1753356975951,300.0,0.00027397,120]
[374564816,1753356988475,300.0,0.00027397,120]
[374564817,1753356996038,300.0,0.00027397,120]
[374564818,1753357034841,300.0,0.00027397,120]
[374564819,1753357080336,305.12000534,0.00027397,120]
[374564820,1753357359214,1056.06,0.00027397,120]
[374564821,1753357379939,500.0,0.000273,120]
[374564822,1753357395949,500.0,0.000273,120]
[374564823,1753357406951,500.0,0.000273,120]
[374564824,1753357432518,261.0,0.000273,120]
[374564833,1753357593157,598.78,0.00027127,120]
[374564854,1753357832023,-428.36250059,0.00019178,2]
[374564855,1753357832080,-342.08749941,0.00019178,2]
[374564856,1753357832090,-331.369978,0.0002,2]
[374564857,1753357832101,-3553.2006421,0.00020607,2]
[374564858,1753357832112,-203.19516245,0.00020681,2]
[374564859,1753357832122,-480.92902233,0.00020781,2]
[374564860,1753357832134,-289.52097767,0.00020781,2]
[374564861,1753357832144,-503.0,0.00021416,2]
[374564862,1753357832153,-180.0,0.0002157,7]
[374564863,1753357832163,-208.41,0.00021585,2]
[374564864,1753357832172,-186.0,0.0002167,2]
[374564865,1753357832181,-598.78,0.00021702,2]
[374564866,1753357832190,-360.21,0.00021708,2]
[374564867,1753357832200,-250.0,0.0002173,2]
[374564868,1753357832209,-1200.0,0.00021736,2]
[374564869,1753357832218,-166.23,0.00021737,2]
[374564870,1753357832228,-200.0,0.00021737,2]
[374564871,1753357832237,-938.81,0.00021748,2]
[374564872,1753357832246,-156.61,0.00021857,2]
[374564873,1753357832255,-156.61,0.00021885,2]
[374564874,1753357832265,-300.0,0.00021898,2]
[374564875,1753357832274,-300.0,0.00021898,2]
[374564876,1753357832283,-2474.94707756,0.000219,6]
[374564877,1753357832293,-156.61,0.00021912,2]
[374564878,1753357832302,-3723.88704143,0.00021918,2]
[374564879,1753357832314,-1276.11295857,0.00021918,2]
[374564880,1753357832323,-150.0,0.00021918,2]
[374564881,1753357832333,-156.61,0.00021939,2]
[374564882,1753357832342,-1000.0,0.00021942,2]
[374564883,1753357832352,-666.0,0.00021965,3]
[374564884,1753357832363,-156.61,0.00021967,2]
[374564885,1753357832373,-156.61,0.00021994,2]
[374564886,1753357832383,-460.0,0.00022,2]
[374564887,1753357832392,-920.12,0.00022008,2]
[374564888,1753357832402,-156.61,0.00022021,2]
[374564889,1753357832417,-156.61,0.00022049,2]
[374564890,1753357832426,-156.61,0.00022076,2]
[374564891,1753357832435,-557.99674112,0.00022107,6]
[374564892,1753357832447,-1916.95033627,0.00022107,6]
[374564894,1753357832456,-8889.75966373,0.00022222,2]
[374564896,1753357832468,-327.09633627,0.00022222,2]
[374564898,1753357832479,-156.587,0.00022222,2]
[374564900,1753357832489,-3982.97228334,0.00022222,2]
[374564902,1753357832499,-231.28369723,0.00022222,2]
[374564904,1753357832509,-203.19516245,0.00022283,2]
[374564906,1753357832518,-2474.94707739,0.00022314,7]
[374564908,1753357832528,-160.0,0.00022334,2]
[374564909,1753357832538,-600.0,0.00022334,2]
[374564911,1753357832547,-151.0,0.00022334,2]
[374564913,1753357832557,-500.0,0.00022334,2]
[374564915,1753357832567,-151.0,0.00022334,2]
[374564917,1753357832577,-621.52574381,0.00022334,2]
[374564919,1753357832586,-151.0,0.00022334,2]
[374564921,1753357832596,-151.0,0.00022334,2]
[374564923,1753357832607,-346.92554585,0.00022334,2]
[374564925,1753357832617,-6558.84,0.00022346,2]
[374564927,1753357832626,-998.94658426,0.00022346,2]
[374564929,1753357832636,-31724.72286906,0.00022347,2]
[374564931,1753357832645,-770.45,0.00022383,2]
[374564933,1753357832655,-1027.76,0.00022454,2]
[374564935,1753357832664,-2474.94707739,0.00022521,7]
[374564937,1753357832674,-150.0,0.0002265,2]
[374564939,1753357832683,-2000.0,0.000227,2]
[374564941,1753357832693,-2474.94707739,0.00022728,7]
[374564942,1753357832702,-503.0,0.00022746,4]
[374564945,1753357832712,-9557.879672,0.0002277,2]
[374564947,1753357832722,-360.21,0.00022794,2]
[374564948,1753357832731,-2484.2911,0.00022799,2]
[374564950,1753357832743,-594.15,0.00022799,2]
[374564952,1753357832754,-1430.2902,0.00022799,2]
[374564954,1753357832763,-437.740098,0.00022858,2]
[374564957,1753357832775,-872.925,0.00022858,2]
[374564973,1753357838095,-15873.59747695,0.00022858,2]
[374565143,1753357840106,-1620.90954319,0.00022858,2]
[374565145,1753357840120,-4405.77138875,0.00022858,2]
[374565150,1753357840160,-988.51476192,0.00022858,2]
[374565152,1753357840171,-361.63,0.00022878,2]
[374565154,1753357840181,-600.0,0.00022882,2]
[374565156,1753357840190,-4588.62780079,0.0002289,2]
[374565442,1753357843202,-1225.40319921,0.0002289,2]
[374565444,1753357843219,-335.904,0.0002289,2]
[374565447,1753357843234,-1416.56713424,0.00022934,8]
[374565712,1753357846084,-793.12250272,0.00022934,8]
[374566479,1753358004183,152.09,0.00013699,2]
[374566481,1753358209277,-151.0,0.00018533,2]
[374566482,1753358209302,-151.0,0.00018539,2]
[374566483,1753358218294,149.0,0.00018537,2]
[374566484,1753358327516,1000.0,0.00027,120]
[374566487,1753358425817,282.66,0.0002739,120]
[374566488,1753358459663,308.07067436,0.00027297,120]
[374566545,1753358692652,290.35,0.00026703,120]
[374566562,1753359032371,-250.0,0.00018845,2]
[374566563,1753359032381,-151.0,0.00019008,2]
[374566564,1753359032392,-151.0,0.00019008,2]
[374566565,1753359032402,-685.44,0.00019178,2]
[374566566,1753359032411,-1070.0,0.00019632,2]
[374566567,1753359032421,-1070.0,0.0001965,2]
[374566568,1753359032431,-300.0,0.00020363,2]
[374566569,1753359032440,-1200.0,0.00020363,2]
[374566570,1753359032450,-250.0,0.00020364,2]
[374566571,1753359032460,-1070.0,0.00020364,2]
[374566572,1753359032472,-300.0,0.00020364,2]
[374566573,1753359032483,-300.0,0.00020364,2]
[374566574,1753359032494,-250.0,0.0002037,2]
[374566575,1753359032503,-1070.0,0.0002037,2]
[374566576,1753359032511,-1070.0,0.0002073,2]
[374566577,1753359032521,-685.44,0.00020741,2]
[374566578,1753359032530,-504.0,0.00020746,2]
[374566579,1753359032540,-213.68,0.00021139,2]
[374566580,1753359032550,-321.26,0.0002116,2]